Cogmind - Beta 14 @@@ ROGUE MODE // 2025.03.08 @ 08:59:08 Player: NeoBioHazard Result: Destroyed by S-10 Pest with Light Assault Rifle Performance ------------- Evolutions (0) 0 Regions Visited (2) 400 Robots Destroyed (36) 180 Value Destroyed (759) 759 Prototype IDs (2) 40 Alien Tech Used (0) 0 Bonus (0) 0 TOTAL SCORE: 1379 Bonus ------- None Cogmind --------- Core Integrity 0/250 Matter 300/300 Energy 240/250 System Corruption 0% Temperature Cool (72) Movement Treading (320) Ox2 Location -10/Mines Parts ------- > --- POWER (1) -------- Ion Engine > --- PROPULSION (2) --- Light Treads Aluminum Leg > --- UTILITY (2) ------ High-capacity Storage Unit Targeting Computer > --- WEAPON (2) ------- Medium Laser Particle Gun > --- INVENTORY (20) --- Ion Engine Aluminum Leg Aluminum Leg Heat Sink Heat Sink High-capacity Matter Pod (200) Experimental Sensor Array Signal Interpreter Field Recycling Unit (0) Sensor Drone Bay Small Laser Small Laser Small Laser Light Assault Rifle Light Assault Rifle Flail Mining Claw Peak State ------------ > --- POWER ------------ Light Nuclear Core > --- PROPULSION ------- Light Treads Light Treads > --- UTILITY ---------- Small Storage Unit Seismic Detector > --- WEAPON ----------- Medium Laser Particle Gun > --- INVENTORY -------- Ion Engine Light Ion Engine Light Ion Engine Signal Interpreter Improved Terrain Scanner Improved Terrain Scanner Small Laser Mining Laser [Rating: 11] Favorites ----------- Power Ion Engine Engine Ion Engine Power Core Light Nuclear Core Propulsion Light Treads Treads Light Treads Leg Aluminum Leg Utility Targeting Computer Device Seismic Detector Storage High-capacity Storage Unit Processor Targeting Computer Weapon Medium Laser Energy Gun Medium Laser Build | -11 -10 -10 ------- Run | Yrd Mat Min Slots Evolved . | . . . Power . | . . . Propulsion . | . . . Utility . | . . . Weapon . | . . . Parts Attached 18 | 8 8 2 Power 5 | 1 3 1 Engine 4 | 1 2 1 Core 1 | . 1 . Reactor . | . . . Propulsion 5 | 2 2 1 Treads 3 | 2 1 . Leg 2 | . 1 1 Wheel . | . . . Hover . | . . . Flight . | . . . Utility 5 | 3 2 . Device 2 | 2 . . Storage 2 | 1 1 . Processor 1 | . 1 . Hackware . | . . . Protection . | . . . Artifact . | . . . Weapon 3 | 2 1 . Energy Gun 3 | 2 1 . Energy Cannon . | . . . Ballistic Gun . | . . . Ballistic Cannon . | . . . Launcher . | . . . Special Weapon . | . . . Impact Weapon . | . . . Slashing Weapon . | . . . Piercing Weapon . | . . . Special Melee Weapon . | . . . Unidentified Prototypes . | . . . Parts Lost 4 | . 2 2 Power 2 | . 1 1 Propulsion 2 | . 1 1 Utility . | . . . Weapon . | . . . Highest Loss Streak 1 | . 1 1 To Critical Strikes . | . . . Average Slot Usage (%) 99 | . 99 99 Engine 9 | . 7 13 Core 4 | . 5 . Treads 23 | . 23 22 Leg 4 | . 4 4 Device 1 | . 2 . Storage 14 | . 14 14 Processor 12 | . 11 14 Energy Gun 28 | . 28 28 Peak Build Rating 11 | 9 11 11 Average Rating 9 | 7 9 9 On Entrance 5 | . 8 9 Naked Turns . | . . . Heaviest Build 50 | 14 50 50 Greatest Support 40 | 40 40 40 Greatest Overweight (x) 2 | . 2 2 Average Overweight (x) . | . . 1 Largest Inventory Capacity 20 | 8 20 20 Average Capacity 15 | 7 14 20 Most Carried 19 | 6 17 19 Average Carried 12 | 3 11 17 Final Capacity 20 | 8 20 20 Final Carried 17 | 6 16 17 Class Distribution -------------------- 100% | Mutant Dominant Class ---------------- Mutant | -10/Materials Mutant | -10/Mines Resources | -11 -10 -10 ----------- Run | Yrd Mat Min Matter Collected 570 | 280 246 44 Remotely . | . . . Salvage Created 1132 | 200 823 109 Parts 78 | 16 49 13 Haulers Intercepted . | . . . Recyclers Shooed 2 | . 2 . Parts Field Recycled . | . . . Retrieved Matter . | . . . Parts Self-Destructed . | . . . Prevented . | . . . Kills | -11 -10 -10 ------- Run | Yrd Mat Min Combat Hostiles Destroyed 24 | . 19 5 Guns 23 | . 18 5 Classes Destroyed 7 | 3 4 . Worker 2 | 2 . . Builder 2 | . 1 1 Tunneler 5 | 5 . . Recycler 2 | 1 1 . Watcher 1 | . 1 . Swarmer 7 | . 3 4 Grunt 17 | . 16 1 Best Kill Streak 4 | 3 4 3 Combat Bots Only 4 | . 4 3 Max Kills in Single Turn 2 | 1 1 2 Gunslinging 1 | . . 1 Exploded . | . . . Melee . | . . . Uniques/NPCs Destroyed . | . . . Combat | -11 -10 -10 -------- Run | Yrd Mat Min Hostile Shots Fired 122 | . 95 27 Missed 30 | . 27 3 Damage Taken 1000 | . 787 213 Core 254 | . 209 45 Absorbed by Shields . | . . . Regen/Repaired (Parts) 29 | . 29 . Core Remaining (%) 100 | 100 . . Volleys Fired 97 | 14 69 14 Largest 2 | 2 2 2 Hottest 115 | 90 115 115 Shots Fired 193 | 28 137 28 Gun 193 | 28 137 28 Cannon . | . . . Launcher . | . . . Special . | . . . Kinetic . | . . . Thermal 193 | 28 137 28 Explosive . | . . . Electromagnetic . | . . . Robot Hit Streak 9 | 7 9 6 Robot Miss Streak 6 | 1 6 3 Penetration Max . | . . . Secondary Targets 3 | . 2 1 Max Gunslinging Chain 1 | . 1 1 Shots Hit Robots 127 | 19 92 16 Core Hits 53 | 9 37 7 Critical Kills . | . . . Critical Parts Destroyed . | . . . Critical Strikes 10 | 2 7 1 Burn 10 | 2 7 1 Melee Attacks . | . . . Impact . | . . . Slashing . | . . . Piercing . | . . . Sneak Attacks . | . . . Combat Hostiles . | . . . Follow-up Attacks . | . . . Damage Inflicted 1665 | 225 1215 225 Guns 1665 | 225 1215 225 Cannons . | . . . Explosions . | . . . Melee . | . . . Ramming . | . . . Kinetic . | . . . Thermal 1665 | 225 1215 225 Explosive . | . . . Electromagnetic . | . . . Impact . | . . . Slashing . | . . . Piercing . | . . . Highest Corruption . | . . . Average Corruption . | . . . Corruption Purged . | . . . Corruption Blocked . | . . . Overload Shots . | . . . Overflow Damage . | . . . Projectiles . | . . . Explosions . | . . . Melee . | . . . Knockbacks . | . . . Impact . | . . . Kinetic . | . . . Secondary . | . . . Self-Inflicted Damage . | . . . Shots . | . . . Rammed . | . . . Targets Rammed . | . . . Kicked . | . . . Crushed . | . . . Highest Temperature 576 | 184 576 306 Average Temperature 145 | 73 166 92 Received Heat Transfer 441 | . 393 48 Effects 10 | . 10 . Shutdowns 3 | . 3 . Energy Bleed 6 | . 6 . Damage (core) 1 | . 1 . Siege Activations . | . . . Robots Corrupted . | . . . Combat Hostiles . | . . . Parts Fried . | . . . Impact Corruptions . | . . . Robots Melted 1 | . 1 . Combat Hostiles 1 | . 1 . Parts Melted 7 | 2 5 . Heat Transferred 5031 | 731 3634 666 Parts Sabotaged . | . . . Parts Stolen . | . . . Parts Stripped . | . . . Power Chain Reactions . | . . . Alert | -11 -10 -10 ------- Run | Yrd Mat Min Peak Influence 308 | 40 308 159 Initial 39 | . 26 39 Average 97 | 20 126 54 Maximum Alert Level 1 | . 1 . Low Security (%) 92 | 100 87 100 Level 1 7 | . 12 . Level 2 . | . . . Level 3 . | . . . Level 4 . | . . . Level 5 . | . . . High Security . | . . . Max Security . | . . . Squads Dispatched 6 | . 6 . Investigation 4 | . 4 . Extermination . | . . . Reinforcement 2 | . 2 . Assault . | . . . Garrison . | . . . Intercept . | . . . Searches Triggered . | . . . Construction Impeded . | . . . Haulers Reinforced . | . . . Active Scanning Responses . | . . . Cargo Convoy Interrupts . | . . . Stealth | -11 -10 -10 --------- Run | Yrd Mat Min Distress Signals . | . . . Communications Jammed . | . . . Distress Signals . | . . . Times Spotted 37 | . 29 8 Peak Tracking Total 3 | . 3 3 Tactical Retreats 3 | . 1 2 Traps | -11 -10 -10 ------- Run | Yrd Mat Min Traps Triggered 2 | . 2 . Indirectly . | . . . Trap Hack Attempts . | . . . Triggered . | . . . Disarmed . | . . . Reprogrammed . | . . . Reused . | . . . Traps Extracted . | . . . Installed . | . . . Triggered . | . . . Machines | -11 -10 -10 ---------- Run | Yrd Mat Min Machines Disabled 1 | . 1 . Max in Single Turn 1 | . 1 . Machines Repaired . | . . . Machines Dismantled . | . . . Machines Sabotaged . | . . . Overloaded Fab Kills . | . . . Hacking | -11 -10 -10 --------- Run | Yrd Mat Min Machines Accessed 6 | . 5 1 Terminals 3 | . 3 . Fabricators . | . . . Repair Stations 1 | . 1 . Recycling Units 1 | . 1 . Scanalyzers . | . . . Garrison Access . | . . . Total Hacks 14 | . 13 1 Successful 8 | . 7 1 Failed 6 | . 6 . Catastrophic 2 | . 2 . Database Lockouts . | . . . Manual 6 | . 6 . Terminals 9 | . 9 . Fabricators . | . . . Repair Stations 3 | . 3 . Recycling Units 1 | . 1 . Scanalyzers . | . . . Garrison Access . | . . . Terminal Hacks 5 | . 4 1 Part Schematic 1 | . 1 . Prototype ID Bank 1 | . 1 . Open Door 1 | . . 1 Terminal Index 1 | . 1 . Recall Reinforcements 1 | . 1 . Fabricator Hacks . | . . . Repair Station Hacks 2 | . 2 . Scan Component 1 | . 1 . Repair 1 | . 1 . Recycling Unit Hacks 1 | . 1 . Report Inventory 1 | . 1 . Scanalyzer . | . . . Garrison Access Hacks . | . . . Unauthorized Hacks . | . . . Terminals . | . . . Fabricators . | . . . Repair Stations . | . . . Recycling Units . | . . . Scanalyzers . | . . . Garrison Access . | . . . Data Cores Recovered . | . . . Used . | . . . Hacking Detections 3 | . 3 . Full Trace Events 2 | . 2 . Feedback Events . | . . . Feedback Blocked . | . . . Robot Schematics Acquired . | . . . Robots Built . | . . . Authchips . | . . . Time . | . . . Total Robot Build Rating . | . . . Part Schematics Acquired 1 | . 1 . Parts Built . | . . . Authchips . | . . . Time . | . . . Total Part Build Rating . | . . . Parts Repaired 1 | . 1 . Time 26 | . 26 . Parts Recycled . | . . . Recycled Matter . | . . . Retrieved Matter . | . . . Retrieved Components . | . . . Parts Scanalyzed . | . . . Part Schematics Acquired . | . . . Parts Damaged . | . . . Bothacking | -11 -10 -10 ------------ Run | Yrd Mat Min Used RIF Installer . | . . . Robots Hacked . | . . . Non-combat . | . . . Combat . | . . . Robot Hacks Applied . | . . . Relay Couplers Released . | . . . Fabnet Peak Effective % . | . . . Robots Rewired . | . . . Allies Hacked . | . . . Hacks Repelled . | . . . Allies | -11 -10 -10 -------- Run | Yrd Mat Min Total Allies . | . . . Largest Group . | . . . Highest-Rated Group . | . . . Highest-Rated Ally . | . . . Total Orders . | . . . Ally Attacks . | . . . Total Damage . | . . . Kills . | . . . Allies Corrupted . | . . . Allies Melted . | . . . Intel | -11 -10 -10 ------- Run | Yrd Mat Min Robot Analysis Total . | . . . Derelict Logs Recovered 2 | . . 2 Drone Launches . | . . . Drone Recoveries . | . . . Exploration | -11 -10 -10 ------------- Run | Yrd Mat Min Turns Passed 2908 | 212 1843 853 Spaces Moved 1075 | 96 685 294 Core 5 | 5 . . Treads 1070 | 91 685 294 Legs . | . . . Wheels . | . . . Hover . | . . . Flight . | . . . Fastest Speed 50 | 50 160 240 Average Speed 221 | 154 212 263 Slowest Speed 320 | 160 320 320 Overloaded Moves . | . . . Propulsion Burnouts . | . . . Robots Hopped . | . . . Cave-ins Triggered . | . . . Exploration Rate (%) 58 | 6 91 79 Regions Visited 2 Branch Regions 1 Pre-discovered Areas 1 | . . 1 Known Exits Taken . | . . . Unknown Exits Taken 2 | 1 1 . Scrap Searched . | . . . Spaces Dug . | . . . Terrain Destroyed . | . . . Melee . | . . . Projectile . | . . . AOE . | . . . Terrain Rammed . | . . . Walls Destroyed . | . . . Machines Disabled . | . . . Actions | -11 -10 -10 --------- Run | Yrd Mat Min Total 1416 | 128 943 345 Wait 184 | 5 147 32 Move 1073 | 95 684 294 Hop . | . . . Pick Up 30 | 6 21 3 Fast Attach 10 | 7 3 . Attach 4 | . 2 2 Detach . | . . . Swap 4 | 1 3 . Drop 14 | . 14 . Fire 97 | 14 69 14 Melee . | . . . Ram . | . . . Kick . | . . . Crush . | . . . Escape Stasis . | . . . Rewire . | . . . Trap . | . . . Miscellaneous . | . . . Route ------- -11/Scrapyard -10/Materials (discovered 4 exits: [*Mat x2] / *Min x2) -10/Mines (discovered 1 exit: [*Mat]) History --------- Turn | Location | Event 12 | -11/Scrapyard | Discovered new exit (range 15) 213 | -11/Scrapyard | Entered Materials 319 | -10/Materials | Build established: Mutant 824 | -10/Materials | Repaired Ion Engine 988 | -10/Materials | Discovered new exit (range 6) 1286 | -10/Materials | Core integrity fell below 50% 1440 | -10/Materials | Discovered new exit (range 4) 1561 | -10/Materials | Discovered new exit (range 7) 1712 | -10/Materials | Core integrity fell below 20% 1782 | -10/Materials | Discovered new exit (range 10) 2056 | -10/Materials | Entered Mines 2155 | -10/Mines | Discovered new exit (range 5) 2337 | -10/Mines | Learned location of Zion (-6) 2467 | -10/Mines | Found a damaged Exp. Sensor Array with a note attached 2474 | -10/Mines | Found Prototype Device 2487 | -10/Mines | Learned 2 Materials zone layouts 2555 | -10/Mines | Found the Drone Emporium 2569 | -10/Mines | Found Prototype Device 2909 | -10/Mines | Destroyed by S-10 Pest with Light Assault Rifle Last Messages --------------- >>Open Door Sealed Doors opened. 02554_ Connecting with SHOP.Sys... 02555_ 7U-DI0(g): "Well that was anticlimactic. Heard you outside and thought you were from the Merchants Guild. I haven't even officially opened my Drone Emporium yet but am totally ready to tell them where they can shove that C&D." 02557_ 7U-DI0(g): "I'm a fan of the free market. Free drones for all! No strings attached!" 02569_ Acquired Prototype Device. 02596_ Lgt. Treads destroyed. 02607_ G-34 Mercenary heat spikes uncontrollably. 02608_ G-34 Mercenary overheating. 02612_ G-34 Mercenary heat short circuits Aluminum Leg. 02612_ G-34 Mercenary overheating. 02628_ Ion Engine destroyed. 02632_ G-34 Mercenary suffers critical hit (Burn). 02632_ G-34 Mercenary destroyed. 02656_ Acquired 20 matter. 02908_ S-10 Pest destroyed. Map ----- +----------------------------------------------------+ | ?????# #????????????? | | ?????# ## ##???????????????# ?###### | | ?????# #######????????????????# ???????## | | ?????# #?????????????????????## ???????#### | | ????## #?????????????????????# ??????????# | | ???## #?????????????????????# ????####?? | | ???# #?????????????????????# ##### ##? | | ??# ##?????????????????????# #? | | ??# #???????????????????????# #? | | ??# #???????????????????????# ?? | | ??## ##???????????????????????# ??? | | ???####????????????????????????? #??? | | ?????????????????????? ??????????# #### | | ?????????????????????? ????????????# | | ?????????????????????? ????????????## #### | | ?????????????????????? ????????????## ##?# | | ????????????????????? ???????????## ### | | ?????????????????????# #???????????# ## | | ????????????????????? #??????????## ## | | ?????????????????????# ##????????## ### | | ?????????????????????# ?????????# ##?? | | ?????????????######??# #?????????# #??# | | ????????????## ### #?????????## #?## | | ????????????# ## #??????????## #?#" | | ????????????# ss #???????????## ###" | | ????????????# =%*@ ##???????????## ### | | ???????????# ## k ##???????????## # | | ???????????## #?## ##??????????## | | ????????????## #???# ##?????##### % | | ?????????????# ????## #????## %[ | | ???????????? ??????# ###### | | ???????????###???????## | | ??????????????????????## ## | | ???????????????????????# ###### ###### | | ??????????????????????# #????## #????? | | ?????????????????????# ##?????## #????# | | ?????????????????????# ##???????## #??### | | ?????????????????????#####?????????# #### | | ???????????????????????????????????# ## | | ???????????????????????????????????# | | ???????????????????????????????????## | | ????????????????????????????????????##### ## | | ????????????????????????????????????????####? | | ????????????????????????????????????????????? | | ????????????????????????????????????????????? | | ????????????????????????????????????????????? | | ????????????????????????????????????????????? | | ????????????????????????????????????????????? | | ????????????????????????????????????????????? | | ????????????????????????????????????????????? | +----------------------------------------------------+ Best States ------------- Heat Dissipation 25 Energy Generation 14 Energy Capacity 250 Matter Stores 300 Matter Capacity 300 Sight Range 16 Terrain Scan Range 16 Terrain Scan Density 10 Evasion (%) 40 Targeting Accuracy 5 Recoil Reduction 2 Item Schematics ----------------- Lgt. Treads | -10/Materials | Hacked Robot Schematics ------------------ None Fabricated ------------ Nothing Alien Tech Used ----------------- None Achievements -------------- None Challenges ------------ None Game ------ Seed NavigationRelayTrap Manual? 0 Play Time 00:14:34 Cumulative 119.3 hours Start 2025.03.08 @ 08:46:31 End 2025.03.08 @ 08:59:08 Sessions 1 Manual Loads 0 Difficulty Rogue Special Mode None Game No. 235 Rogue 167 Adventurer 15 Explorer 53 Win Type - Total 3 Types 3/0/0/0/0/0/0/0/0 Lore% 25 Gallery% 58 Achievement% 46 Wizard Run 0 Options --------- Layout 0 ASCII 0 Keyboard 0 Movement Numpad Keybinds 0 Fullscreen 1 Font 18/SmallcapsGlow Map View 76x50 Zoom Use 0% Tactical HUD 1 Map Filters NONE Filters NONE Steam 1 RUN: 8bd19420-6c7e-48ce-818a-6a81b6fa0e17